[Event "WSTCC-65 2024"]
[Site "Krakow"]
[Date "2024.07.03"]
[Round "2.6"]
[White "Pruefer, Friedbert"]
[Black "Bykhovsky, Avigdor"]
[Result "0-1"]
[ECO "D00"]
[WhiteElo "2214"]
[BlackElo "2335"]
[Annotator "TA"]
[PlyCount "96"]
[EventDate "2024.07.01"]
[EventType "team-tourn"]
[EventCountry "POL"]
[SourceTitle "playchess.com"]
[Source "ChessBase"]
[SourceQuality "1"]
[TimeControl "40/5400+30:1800+30"]

{[%evp 13,96,8,14,-7,4,2,6,-3,-2,-8,-7,0,0,0,0,-56,0,0,0,-22,-14,-4,-2,-27,28,25,14,4,17,4,6,-42,-52,-76,-79,-76,-76,-76,-76,-76,-45,-45,0,-72,0,-108,-122,-125,-4,-95,-73,-72,-59,-133,-135,-122,-122,-284,-285,-299,-294,-968,-952,-1131,-841,-1173,-943,-1245,-1155,-984,-654,-703,-597,-588,-497,-2121,-2210,-12820,-4722,-5065,-4722,-5720,-4731,-29986,-29987]} 1. d4 {[%emt 0:00:06]} d5 {[%emt 0:00:25]} 2. Bf4 {[%emt 0:00:04]} c5 {[%emt 0:02:55]} 3. e3 {[%emt 0:02:27]} Nc6 {[%emt 0:00:59]} 4. c3 {[%emt 0:00:38]} Nf6 {[%emt 0:01:36]} 5. Nd2 {[%emt 0:03:03]} e6 {[%emt 0:06:44]} 6. Ngf3 {[%emt 0:00:59]} Be7 {[%emt 0:01:11]} 7. Bd3 {[%emt 0:00:46]} Nh5 {[%emt 0:03:40]} 8. Be5 {[%emt 0:08:50]} Nxe5 {[%emt 0:01:30]} 9. dxe5 {[%emt 0:13:15]} g6 {[%emt 0:00:57]} 10. O-O {[%emt 0:02:48] The position is equal.} Bd7 {[%emt 0:04:07]} 11. Re1 {[%emt 0:05:32]} Qc7 {[%emt 0:04:59]} 12. a4 {[%emt 0:07:32]} a6 {[%emt 0:04:09]} 13. g3 {[%emt 0:10:14]} Ng7 {[%emt 0:06:34]} 14. Qe2 {[%emt 0:02:29]} (14. e4 $11) 14... O-O {[%emt 0:04:04]} ({Black should try} 14... g5 $1 $15) 15. e4 $11 {[%emt 0:01:47]} b5 {[%emt 0:06:42]} 16. axb5 {[%emt 0:11:53]} c4 {[%emt 0:00:14]} 17. Bc2 {[%emt 0:00:26]} axb5 {[%emt 0:00:29]} 18. Qe3 {[%emt 0:00:15]} f5 {[%emt 0:11:20]} ({Better is} 18... b4) 19. exf6 {[%emt 0:02:54]} Bxf6 {[%emt 0:00:11][%cal Ob5b4]} 20. e5 {[%emt 0:00:19]} Be7 {[%emt 0:00:29]} 21. Nd4 {[%emt 0:00:52]} b4 {[%emt 0:04:52]} 22. cxb4 {[%emt 0:00:29]} (22. N2f3 $11) 22... Bxb4 $15 {[%emt 0:02:21]} 23. Rec1 {[%emt 0:01:47]} Rxa1 {[%emt 0:01:34]} 24. Rxa1 {[%emt 0:00:02]} Bc5 {[%emt 0:00:10] And now ...Qb6 would win.} 25. b4 {[%emt 0:10:07]} Bxb4 {[%emt 0:19:16]} 26. N2f3 {[%emt 0:00:02]} Be7 {[%emt 0:00:20]} 27. Qh6 {[%emt 0:02:25]} Qb6 {[%emt 0:01:35]} 28. Rd1 {[%emt 0:00:20]} (28. h4 $11 {keeps the balance.} c3 29. g4 Rxf3 30. Nxf3) 28... Ra8 {[%emt 0:01:16]} (28... Qa7 $17) 29. Ng5 {[%emt 0:00:43]} (29. h4 $11 Qb8 30. Rb1) 29... Bxg5 $17 {[%emt 0:00:35]} 30. Qxg5 {[%emt 0:00:01]} Qd8 {[%emt 0:00:39]} (30... Ba4 $17 {White must now prevent ...Bxc2.} 31. Bxa4 Rxa4) 31. Qh6 {[%emt 0:01:08]} (31. Qxd8+ $1 $11 {remains equal.} Rxd8 32. Ra1) 31... Qf8 {[%emt 0:01:00]} 32. Rb1 {[%emt 0:01:06]} Nf5 {[%emt 0:04:17]} 33. Qxf8+ {[%emt 0:02:24]} (33. Nxf5 $15 gxf5 (33... exf5 34. Qe3 $15) 34. Qf4) 33... Kxf8 {[%emt 0:00:38]} 34. Bxf5 {[%emt 0:00:12]} gxf5 $15 {[%emt 0:00:37][%mdl 4096] Endgame. KRB-KRN} ({Don't play} 34... exf5 35. Kf1 $11) 35. Rb7 $2 {[%emt 0:00:55] [#] Now White is beyond hope.} (35. Kf1 $17 {might work better.}) 35... Ra1+ $1 $19 {[%emt 0:01:13]} 36. Kg2 {[%emt 0:00:01]} Rd1 {[%emt 0:00:09]} 37. Nxf5 {[%emt 0:03:03]} (37. Rxd7 Rxd4 38. Kf1) 37... exf5 {[%emt 0:02:04]} 38. Rxd7 {[%emt 0:00:01] KR-KR} c3 {[%emt 0:00:03] Strongly threatening ...c2.} 39. Rc7 {[%emt 0:00:27]} d4 {[%emt 0:00:31]} 40. Kf3 {[%emt 0:00:58]} Rd2 {[%emt 0:00:17]} 41. Kf4 {[%emt 0:30:49]} Rxf2+ {[%emt 0:32:08]} 42. Kg5 {[%emt 0:00:06] Threatens to win with Kf6.} Rxh2 43. Kf6 {[%emt 0:00:00][%cal Rc7c8]} Rh6+ {[%emt 0:00:00]} 44. Kxf5 {[%emt 0:00:00] [#]} (44. Kg5 $142 Rg6+ 45. Kxf5 Rxg3 46. e6) 44... Rh2 $1 {[%emt 0:00:00]} 45. e6 {[%emt 0:00:00]} c2 {[%emt 0:00:00]} 46. Ke4 {[%emt 0:01:55]} Rd2 {[%emt 0:00:00]} 47. Kd5 {[%emt 0:00:29]} d3 {[%emt 0:00:00] ( -> ...Re2)} 48. Kd6 {[%emt 0:03:01]} Re2 {[%emt 0:00:00] Weighted Error Value: White=0.98/Black=0.36.  Loses game:     	White=1     	---        Mistake:       	White=8     	Black=4      Inaccurate:     	White=1     	Black=2      OK:         	White=11    	Black=8      Best:        	White=1     	Black=3      Strong:       	---       	Black=2} 0-1

[Event "WSTCC-65 2024"]
[Site "Krakow"]
[Date "2024.07.03"]
[Round "2.6"]
[White "Smith, Andrew Philip"]
[Black "Vatter, Hans-Joachim"]
[Result "1/2-1/2"]
[ECO "C16"]
[WhiteElo "2037"]
[BlackElo "2214"]
[Annotator "TA"]
[PlyCount "90"]
[EventDate "2024.07.01"]
[EventType "team-tourn"]
[EventCountry "POL"]
[SourceTitle "playchess.com"]
[Source "ChessBase"]
[SourceQuality "1"]
[TimeControl "40/5400+30:1800+30"]

{[%evp 12,90,16,21,24,25,21,25,33,35,27,37,40,-59,-62,-56,-62,-61,-36,-43,-43,-69,-58,-73,-49,-81,-31,-30,-42,-97,-94,-89,-19,-24,-17,-32,-35,-39,-27,-49,-44,-27,-26,-19,-27,-10,0,0,0,-16,-14,-10,-29,-5,0,-4,-1,-2,36,38,61,0,0,0,0,-4,-10,0,-2,-242,0,0,0,0,0,0,0,0,0,0,0]} 1. e4 {[%emt 0:00:11]} e6 {[%emt 0:00:11]} 2. d4 {[%emt 0:00:17]} d5 {[%emt 0:00:02]} 3. Nc3 {[%emt 0:00:29]} Bb4 {[%emt 0:00:51]} 4. e5 {[%emt 0:00:19]} b6 {[%emt 0:00:43]} 5. Bd2 {[%emt 0:05:20]} Qd7 {[%emt 0:06:57]} 6. Bb5 {[%emt 0:03:19]} c6 {[%emt 0:00:20]} 7. Ba4 {[%emt 0:00:20]} a5 {[%emt 0:12:19]} 8. a3 {[%emt 0:02:09]} Bxc3 {[%emt 0:00:42]} 9. Bxc3 {[%emt 0:00:35]} Ne7 {[%emt 0:00:50] White has an edge.} 10. Ne2 {[%emt 0:02:21]} Ba6 {[%emt 0:05:03]} 11. Bd2 {[%emt 0:13:50]} Qa7 {[%emt 0:03:33]} 12. O-O {[%emt 0:04:10]} ({Better is} 12. c3 $14) 12... Bxe2 $1 $15 {[%emt 0:04:59]} 13. Qxe2 {[%emt 0:00:18]} b5 {[%emt 0:00:02]} 14. Bb3 {[%emt 0:00:39]} Qxd4 {[%emt 0:00:12][%cal Ob8d7]} (14... a4 $5 15. Ba2 $8 Qxd4 $11) 15. c3 {[%emt 0:15:46]} Qb6 {[%emt 0:11:25]} 16. h4 {[%emt 0:12:30]} h5 {[%emt 0:07:11]} 17. Bc2 {[%emt 0:01:04]} Nd7 {[%emt 0:05:35]} 18. Bg5 {[%emt 0:01:39]} Ng6 {[%emt 0:04:29]} (18... a4 $17) 19. Bxg6 {[%emt 0:08:53]} fxg6 {[%emt 0:00:04]} 20. Qd3 {[%emt 0:00:25] [#]} (20. Qc2 $15 Kf7 21. Rae1) 20... Kf7 $1 $17 {[%emt 0:03:14]} (20... Nxe5 $2 {too greedy.} 21. Qe2 $18) 21. Rae1 {[%emt 0:00:39][%cal Ba1e1,Be1e3,Be3g3,Bg3g4][%mdl 32]} Rhe8 {[%emt 0:01:48]} (21... Qb8 $17) 22. Re3 $11 {[%emt 0:02:48]} Nf8 {[%emt 0:01:43]} 23. Rfe1 {[%emt 0:07:05]} Kg8 {[%emt 0:01:17]} 24. g4 {[%emt 0:03:01]} hxg4 {[%emt 0:04:42]} 25. Rg3 {[%emt 0:00:23]} b4 {[%emt 0:00:57]} 26. Rxg4 {[%emt 0:00:46]} bxa3 {[%emt 0:01:00]} 27. bxa3 {[%emt 0:00:06]} Ra7 {[%emt 0:00:18]} 28. Be3 $1 {[%emt 0:06:08]} Qa6 {[%emt 0:00:29]} 29. Qxa6 {[%emt 0:07:24]} Rxa6 {[%emt 0:00:01][%cal Ba7a6,Ba6b6,Bb6b1,Bb1e1][%mdl 32]} 30. Bc5 {[%emt 0:00:01]} Kh7 {[%emt 0:01:58]} 31. Re3 {[%emt 0:00:10]} Nd7 {[%emt 0:15:22]} 32. Bd6 {[%emt 0:00:03]} Rb6 {[%emt 0:00:10]} 33. Rf3 {[%emt 0:00:31]} Rb1+ {[%emt 0:00:14]} 34. Kg2 {[%emt 0:00:13] Hoping for Rf7.} Re1 {[%emt 0:00:12]} 35. Rg5 {[%emt 0:01:09][%mdl 1024] aiming for h5. White has compensation.} Rg8 {[%emt 0:01:27]} 36. Rf7 {[%emt 0:00:51]} (36. Rfg3 $14) 36... Nb6 {[%emt 0:00:09]} 37. Re7 {[%emt 0:00:42]} Na4 {[%emt 0:02:20]} 38. Rg3 {[%emt 0:00:47]} ({Reject} 38. Rxe6 Nxc3 39. Rgxg6 Ne2) 38... Rc1 {[%emt 0:00:57]} 39. Rxe6 {[%emt 0:00:28]} Nxc3 {[%emt 0:00:12] [#] White must now prevent ...Ne2.} 40. Rgxg6 $2 {[%emt 0:01:23]} (40. Bc5 $11) 40... Ne4 $2 {[%emt 0:00:51]} (40... Ne2 $19 41. Rg4 Rc4) 41. f3 $1 {[%emt 0:11:23] The position is equal.} Rc2+ {[%emt 0:25:49]} 42. Kh3 {[%emt 0:02:20]} Rc3 {[%emt 0:01:19]} 43. Kg2 {[%emt 0:05:52]} Rc2+ {[%emt 0:00:17]} 44. Kh3 {[%emt 0:05:25]} Rc3 $1 45. Kg2 {[%emt 0:06:53]} Rc2+ {[%emt 0:03:15] Weighted Error Value: White=0.20 (precise) /Black=0.14 (very precise) .  Loses game:     	White=1     	---        Missed win:     	---       	Black=1      Mistake:       	White=3     	Black=2      Inaccurate:     	White=2     	Black=1      OK:         	White=18    	Black=12     Best:        	White=3     	Black=3      Strong:       	White=2     	Black=3} 1/2-1/2

[Event "WSTCC-65 2024"]
[Site "Krakow"]
[Date "2024.07.03"]
[Round "2.6"]
[White "Noone, Joe"]
[Black "Fletcher, John"]
[Result "0-1"]
[ECO "B30"]
[WhiteElo "1906"]
[BlackElo "2007"]
[Annotator "NA RC"]
[PlyCount "67"]
[EventDate "2024.07.01"]
[EventType "team-tourn"]
[EventCountry "POL"]
[SourceTitle "playchess.com"]
[Source "ChessBase"]
[SourceQuality "1"]
[TimeControl "40/5400+30:1800+30"]

1. e4 {[%emt 0:00:05]} c5 {[%emt 0:00:15]} 2. Nf3 {[%emt 0:00:12]} Nc6 {[%emt 0:00:04]} 3. c3 {[%emt 0:00:18]} Nf6 {[%emt 0:00:06]} 4. d3 {[%emt 0:01:42]} e5 {[%emt 0:04:41]} 5. Bg5 {[%emt 0:02:15]} Be7 {[%emt 0:01:52]} 6. Be2 {[%emt 0:00:39]} O-O {[%emt 0:05:16]} 7. Nbd2 {[%emt 0:01:15]} d5 {[%emt 0:01:54]} 8. O-O {[%emt 0:03:09]} b6 {[%emt 0:11:44]} 9. Re1 {[%emt 0:04:13]} d4 {[%emt 0:14:29]} 10. Qc2 {[%emt 0:06:44]} Ne8 {[%emt 0:10:42]} 11. Bxe7 {[%emt 0:01:58]} Qxe7 {[%emt 0:00:06]} 12. Nf1 {[%emt 0:03:44]} f5 {[%emt 0:03:43]} 13. exf5 {[%emt 0:01:46]} Bxf5 {[%emt 0:00:09]} 14. Ng3 {[%emt 0:01:17]} Bg6 {[%emt 0:04:14]} 15. Nd2 {[%emt 0:03:26]} dxc3 {[%emt 0:14:00]} 16. bxc3 {[%emt 0:00:44]} Rd8 {[%emt 0:03:47]} 17. Nde4 {[%emt 0:38:59]} Qf7 {[%emt 0:05:41]} 18. Rad1 {[%emt 0:03:11]} h5 {[%emt 0:01:00]} 19. Bf3 {[%emt 0:06:10]} h4 {[%emt 0:01:31]} 20. Ng5 {[%emt 0:01:09]} Qd7 {[%emt 0:05:52]} 21. N3e4 {[%emt 0:00:48]} h3 {[%emt 0:01:45]} 22. Qe2 {[%emt 0:01:46]} hxg2 {[%emt 0:01:16]} 23. Bxg2 {[%emt 0:04:23]} Bf5 {[%emt 0:01:21]} 24. Qh5 {[%emt 0:03:46]} Nf6 {[%emt 0:00:58]} 25. Qh4 {[%emt 0:00:33]} Bg4 {[%emt 0:04:06]} 26. Re3 {[%emt 0:04:03]} Bxd1 {[%emt 0:01:00]} 27. Rh3 {[%emt 0:01:24]} Nh5 {[%emt 0:00:24]} 28. f3 {[%emt 0:02:23]} g6 {[%emt 0:00:21]} 29. Nf2 {[%emt 0:01:25]} Rf4 {[%emt 0:00:50]} 30. Ng4 {[%emt 0:00:51]} Rdf8 {[%emt 0:01:22]} 31. Qe1 {[%emt 0:00:50]} Qxd3 {[%emt 0:00:41]} 32. Bf1 {[%emt 0:00:41]} Qd6 {[%emt 0:00:47]} 33. Rxh5 {[%emt 0:00:00]} gxh5 {[%emt 0:00:00]} 34. Qh4 {[%emt 0:00:00]} 0-1

[Event "WSTCC-65 2024"]
[Site "Krakow"]
[Date "2024.07.03"]
[Round "2.7"]
[White "Kiefer, Gerhard"]
[Black "Morriss, Pete"]
[Result "1-0"]
[ECO "B17"]
[WhiteElo "2210"]
[BlackElo "1982"]
[Annotator "RC"]
[PlyCount "144"]
[EventDate "2024.07.01"]
[EventType "team-tourn"]
[EventCountry "POL"]
[SourceTitle "playchess.com"]
[Source "ChessBase"]
[SourceQuality "1"]
[TimeControl "40/5400+30:1800+30"]

1. e4 {[%emt 0:00:21]} c6 {[%emt 0:00:49]} 2. d4 {[%emt 0:00:09]} d5 {[%emt 0:00:14]} 3. Nd2 {[%emt 0:00:05]} dxe4 {[%emt 0:00:06]} 4. Nxe4 {[%emt 0:00:07]} Nd7 {[%emt 0:00:11]} 5. Ng5 {[%emt 0:00:48]} Ngf6 {[%emt 0:00:39]} 6. Bd3 {[%emt 0:00:10]} e6 {[%emt 0:00:51]} 7. N1f3 {[%emt 0:00:44]} Bd6 {[%emt 0:00:34]} 8. Qe2 {[%emt 0:00:23]} h6 {[%emt 0:01:04]} 9. Ne4 {[%emt 0:00:11]} Nxe4 {[%emt 0:00:34]} 10. Qxe4 {[%emt 0:00:06]} Nf6 {[%emt 0:00:29]} 11. Qe2 {[%emt 0:00:06]} O-O {[%emt 0:02:09]} 12. Bd2 {[%emt 0:07:26]} c5 {[%emt 0:06:26]} 13. dxc5 {[%emt 0:11:58]} Bxc5 {[%emt 0:00:40]} 14. O-O {[%emt 0:00:06]} Bd7 {[%emt 0:03:39]} 15. Ne5 {[%emt 0:07:36]} Bd4 {[%emt 0:04:48]} 16. Bb4 {[%emt 0:20:04]} Re8 {[%emt 0:15:06]} 17. Nxd7 {[%emt 0:00:43]} Nxd7 {[%emt 0:00:35]} 18. Rad1 {[%emt 0:03:29]} Qb6 {[%emt 0:08:20]} 19. c3 {[%emt 0:00:51]} Nf6 {[%emt 0:16:34]} 20. Bb5 {[%emt 0:01:15]} Bc5 {[%emt 0:02:58]} 21. Bxc5 {[%emt 0:00:45]} Qxc5 {[%emt 0:00:12]} 22. Bxe8 {[%emt 0:00:08]} Rxe8 {[%emt 0:00:12]} 23. c4 {[%emt 0:02:21]} e5 {[%emt 0:10:20]} 24. b3 {[%emt 0:00:59]} e4 {[%emt 0:01:13]} 25. Rfe1 {[%emt 0:05:19]} Re6 {[%emt 0:04:00]} 26. Qe3 {[%emt 0:02:00]} Qa3 {[%emt 0:01:10]} 27. Re2 {[%emt 0:00:19]} a5 {[%emt 0:07:05]} 28. h3 {[%emt 0:01:39]} b6 {[%emt 0:01:01]} 29. g3 {[%emt 0:05:28]} Qe7 {[%emt 0:02:32]} 30. Qd4 {[%emt 0:01:58]} Kh7 {[%emt 0:02:46]} 31. g4 {[%emt 0:05:02]} g6 {[%emt 0:03:55]} 32. Re3 {[%emt 0:06:51]} Ne8 {[%emt 0:01:21]} 33. Qd7 {[%emt 0:00:51]} Qf6 {[%emt 0:00:36]} 34. Qd4 {[%emt 0:04:00]} Qf4 {[%emt 0:00:56]} 35. c5 {[%emt 0:00:23]} bxc5 {[%emt 0:00:49]} 36. Qxc5 {[%emt 0:00:03]} Nf6 {[%emt 0:00:38]} 37. Rd8 {[%emt 0:01:20]} Ne8 {[%emt 0:00:50]} 38. Qf8 {[%emt 0:00:49]} Rf6 {[%emt 0:00:25]} 39. Rd2 {[%emt 0:06:12]} Ng7 {[%emt 0:00:11]} 40. Qa8 {[%emt 0:01:42]} Ne6 {[%emt 0:01:57]} 41. Qxe4 {[%emt 0:08:28]} Qg5 {[%emt 0:11:31]} 42. Qe5 {[%emt 0:09:53]} Rf5 {[%emt 0:03:37]} 43. Qg3 {[%emt 0:06:19]} Rc5 {[%emt 0:03:01]} 44. Rd7 {[%emt 0:02:03]} Qf6 {[%emt 0:01:46]} 45. Rf3 {[%emt 0:01:22]} Qa1+ {[%emt 0:01:11]} 46. Kh2 {[%emt 0:00:18]} Ng5 {[%emt 0:00:24]} 47. Rfxf7+ {[%emt 0:00:44]} Nxf7 {[%emt 0:00:11]} 48. Rxf7+ {[%emt 0:00:05]} Kg8 {[%emt 0:00:08]} 49. Qf4 {[%emt 0:00:57]} Rc8 {[%emt 0:01:35]} 50. Qf6 {[%emt 0:05:41]} Qxf6 {[%emt 0:00:13]} 51. Rxf6 {[%emt 0:00:05]} Rc2 {[%emt 0:02:06]} 52. a4 {[%emt 0:00:20]} Kg7 {[%emt 0:00:16]} 53. Rf3 {[%emt 0:00:13]} Rb2 {[%emt 0:00:32]} 54. Kg3 {[%emt 0:00:42]} g5 {[%emt 0:00:37]} 55. Rc3 {[%emt 0:00:10]} Kg6 {[%emt 0:00:32]} 56. f4 {[%emt 0:00:11]} gxf4+ {[%emt 0:01:05]} 57. Kxf4 {[%emt 0:00:08]} Re2 {[%emt 0:01:40]} 58. Rc6+ {[%emt 0:00:23]} Kg7 {[%emt 0:00:07]} 59. Rb6 {[%emt 0:00:20]} Rh2 {[%emt 0:01:05]} 60. Kg3 {[%emt 0:00:17]} Re2 {[%emt 0:00:52]} 61. h4 {[%emt 0:01:09]} Rd2 {[%emt 0:01:10]} 62. h5 {[%emt 0:00:53]} Rb2 {[%emt 0:01:15]} 63. Rb5 {[%emt 0:00:46]} Rb1 {[%emt 0:00:43]} 64. Kf3 {[%emt 0:00:14]} Kf6 {[%emt 0:00:24]} 65. Ke2 {[%emt 0:00:29]} Rb2+ {[%emt 0:00:49]} 66. Kd3 {[%emt 0:00:11]} Rg2 {[%emt 0:00:12]} 67. Rb6+ {[%emt 0:01:48]} Ke5 {[%emt 0:01:40]} 68. Rxh6 {[%emt 0:00:36]} Rxg4 {[%emt 0:00:07]} 69. Ra6 {[%emt 0:00:13]} Rg3+ {[%emt 0:01:02]} 70. Kc4 {[%emt 0:00:25]} Rg4+ {[%emt 0:00:08]} 71. Kc3 {[%emt 0:00:06]} Rg3+ {[%emt 0:00:20]} 72. Kb2 {[%emt 0:00:05]} Kd5 1-0

[Event "WSTCC-65 2024"]
[Site "Krakow"]
[Date "2024.07.03"]
[Round "2.7"]
[White "Maryasin, Boris"]
[Black "Glaessl, Matthias"]
[Result "1-0"]
[ECO "C41"]
[WhiteElo "2209"]
[BlackElo "2196"]
[Annotator "TA"]
[PlyCount "67"]
[EventDate "2024.07.01"]
[EventType "team-tourn"]
[EventCountry "POL"]
[SourceTitle "playchess.com"]
[Source "ChessBase"]
[SourceQuality "1"]
[TimeControl "40/5400+30:1800+30"]

{[%evp 22,67,109,111,127,99,192,180,147,130,190,162,169,126,174,129,107,56,52,45,63,60,66,49,71,26,48,48,48,48,58,58,67,70,105,102,523,501,646,647,567,576,769,771,1414,1399,29990,29991]} 1. e4 {[%emt 0:00:05]} d6 {[%emt 0:00:10]} 2. d4 {[%emt 0:00:14]} Nf6 {[%emt 0:00:06]} 3. Nc3 {[%emt 0:00:09]} e5 {[%emt 0:00:04]} 4. Nf3 {[%emt 0:00:49]} Nbd7 {[%emt 0:00:20]} 5. Bc4 {[%emt 0:00:18]} Be7 {[%emt 0:00:08]} 6. O-O {[%emt 0:00:23]} O-O {[%emt 0:00:41]} 7. h3 {[%emt 0:02:25]} c6 {[%emt 0:01:01]} 8. a4 {[%emt 0:00:19]} a5 {[%emt 0:12:55]} 9. Be3 {[%emt 0:01:42]} Qc7 {[%emt 0:02:20]} 10. Qe2 {[%emt 0:05:11]} exd4 {[%emt 0:05:18]} 11. Nxd4 {[%emt 0:01:00]} Ne5 {[%emt 0:06:37]} 12. Bb3 {[%emt 0:00:55]} b6 {[%emt 0:00:33] C41: Philidor Verdediging.} 13. f4 {[%emt 0:03:29]} Ba6 {[%emt 0:01:45] [#] Fout (0.9)} (13... Ned7 $16 {gaat door met vechten.}) 14. Ndb5 $1 $18 {[%emt 0:02:47] Sterk} cxb5 {[%emt 0:03:45] OK. Wit staat duidelijk beter.} 15. axb5 {[%emt 0:00:22][%cal Of4e5]} ({En niet} 15. fxe5 bxa4 16. exf6 Bxe2 $17) 15... Bb7 {[%emt 0:00:43] Beste} 16. fxe5 {[%emt 0:00:09] OK} dxe5 {[%emt 0:00:06][%cal Rf6e4]} 17. Ra4 $146 {[%emt 0:11:01]} ({Predecessor:} 17. Bg5 Rad8 18. Kh1 Rd6 {½-½ Vana,J (1781)-Sladek,J (1853) Pilsen Region-chT 2223 2022 (1.6)}) 17... Nd7 {[%emt 0:04:37] Fout (0.5)} (17... Bb4 $16 {pakt misschien beter uit.}) 18. Qf3 {[%emt 0:11:28]} Bc5 {[%emt 0:03:28] [#]} 19. Nd5 {[%emt 0:05:27] Fout (0.5)} ({Wit zou moeten spelen} 19. Rc4 $1 $16) 19... Bxd5 {[%emt 0:02:57]} 20. Bxd5 {[%emt 0:00:19]} Bxe3+ {[%emt 0:02:49]} 21. Qxe3 {[%emt 0:00:09] Rc4 zou dodelijk zijn. Zwart is zwak op de lichte velden} Nc5 {[%emt 0:00:14]} 22. Raa1 {[%emt 0:00:28] Wit heeft actievere stukken.} Rab8 {[%emt 0:01:55]} 23. b3 {[%emt 0:04:37] Onnauwkeurig} Ne6 {[%emt 0:02:45]} 24. Bxe6 {[%emt 0:01:20]} fxe6 {[%emt 0:00:06]} 25. c4 {[%emt 0:00:20]} Rbd8 {[%emt 0:01:17]} 26. Rxf8+ {[%emt 0:00:31] OK} Rxf8 $14 {[%emt 0:00:56][%mdl 4096] Eindspel. KQR-KQR} 27. Rd1 {[%emt 0:00:44] Hoopt vervolgens op Qd3. OK} Rc8 {[%emt 0:09:53] Onnauwkeurig} 28. Kh2 {[%emt 0:01:17] OK} a4 $2 {[%emt 0:01:14][%mdl 8192] Zwart kan hierna niet meer standhouden. Verliest partij (4.2)} 29. bxa4 $18 {[%emt 0:00:29][%cal Bb3a4,Ba4a5][%mdl 32] EV=15.48. Goes to a5 (dbg)). Beste (Gemakkelijk)} Ra8 {[%emt 0:01:23] [#]} 30. c5 $1 {[%emt 0:05:44][%mdl 512] OK} bxc5 {[%emt 0:00:45][%cal Bb6c5,Bc5c4][%mdl 32] EV=15.18. Goes to c4 (dbg)). OK} 31. Qb3 {[%emt 0:01:14]} Qb6 {[%emt 0:07:03]} 32. Rd7 {[%emt 0:00:57] Dreigt mat met Qg3. OK} Rf8 {[%emt 0:03:38] [#] Onnauwkeurig} 33. a5 $1 {[%emt 0:02:21][%mdl 512]} c4 {[%emt 0:02:03]} (33... Qxa5 34. Qxe6+) 34. Qg3 {[%emt 0:00:51] Blunder waarde: Wit=0.15 (erg precies) /Zwart=0.82.  Verliest partij:   	---       	Zwart=1      Fout:        	Wit=1      	Zwart=2      Onnauwkeurig:    	Wit=1      	Zwart=2      OK:         	Wit=6      	Zwart=2      Beste:        	Wit=1      	Zwart=1      Sterk:        	Wit=1      	---} 1-0

[Event "WSTCC-65 2024"]
[Site "Krakow"]
[Date "2024.07.03"]
[Round "2.7"]
[White "Van Kemenade, Rudy"]
[Black "Harding, Tim D"]
[Result "0-1"]
[ECO "B01"]
[WhiteElo "1960"]
[BlackElo "1945"]
[Annotator "NA RC"]
[PlyCount "80"]
[EventDate "2024.07.01"]
[EventType "team-tourn"]
[EventCountry "POL"]
[SourceTitle "playchess.com"]
[Source "ChessBase"]
[SourceQuality "1"]
[TimeControl "40/5400+30:1800+30"]

1. e4 {[%emt 0:00:04]} d5 {[%emt 0:00:17]} 2. Nf3 {[%emt 0:00:10]} dxe4 {[%emt 0:00:21]} 3. Ng5 {[%emt 0:00:09]} Bf5 {[%emt 0:00:42]} 4. Nc3 {[%emt 0:00:08]} Nf6 {[%emt 0:00:21]} 5. Bc4 {[%emt 0:00:07]} e6 {[%emt 0:00:17]} 6. f3 {[%emt 0:00:06]} Bc5 {[%emt 0:03:07]} 7. fxe4 {[%emt 0:01:30]} Bxe4 {[%emt 0:01:20]} 8. Ncxe4 {[%emt 0:01:43]} Nxe4 {[%emt 0:01:11]} 9. Bb5+ {[%emt 0:02:28]} c6 {[%emt 0:00:21]} 10. Nxe4 {[%emt 0:00:18]} Qh4+ {[%emt 0:00:33]} 11. Ng3 {[%emt 0:00:24]} cxb5 {[%emt 0:02:39]} 12. Qe2 {[%emt 0:01:50]} a6 {[%emt 0:09:01]} 13. c3 {[%emt 0:01:07]} O-O {[%emt 0:02:02]} 14. d4 {[%emt 0:00:41]} Bd6 {[%emt 0:00:10]} 15. Qf3 {[%emt 0:02:06]} Bxg3+ {[%emt 0:02:16]} 16. Qxg3 {[%emt 0:00:11]} Qxg3+ {[%emt 0:00:11]} 17. hxg3 {[%emt 0:00:06]} Nd7 {[%emt 0:01:14]} 18. Bf4 {[%emt 0:00:17]} Rfc8 {[%emt 0:16:52]} 19. O-O {[%emt 0:00:48]} Rc4 {[%emt 0:03:57]} 20. Bd2 {[%emt 0:03:02]} Rac8 {[%emt 0:00:50]} 21. b3 {[%emt 0:00:50]} R4c6 {[%emt 0:00:14]} 22. a4 {[%emt 0:00:16]} bxa4 {[%emt 0:00:41]} 23. Rxa4 {[%emt 0:00:09]} Nf6 {[%emt 0:06:22]} 24. c4 {[%emt 0:00:52]} Rb6 {[%emt 0:05:27]} 25. Rf3 {[%emt 0:00:47]} Rd6 {[%emt 0:02:00]} 26. Bc3 {[%emt 0:02:21]} b5 {[%emt 0:00:30]} 27. cxb5 {[%emt 0:09:28]} axb5 {[%emt 0:00:11]} 28. Ra7 {[%emt 0:00:16]} Rd7 {[%emt 0:01:55]} 29. Rxd7 {[%emt 0:04:01]} Nxd7 {[%emt 0:00:08]} 30. Bb4 {[%emt 0:00:17]} Nf6 {[%emt 0:01:05]} 31. Bc5 {[%emt 0:00:13]} Ra8 {[%emt 0:01:13]} 32. Rf1 {[%emt 0:03:10]} Ne4 {[%emt 0:03:00]} 33. Rf3 {[%emt 0:01:54]} Ra1+ {[%emt 0:01:51]} 34. Kh2 {[%emt 0:01:12]} h5 {[%emt 0:01:20]} 35. b4 {[%emt 0:02:02]} g5 {[%emt 0:03:54]} 36. Be7 {[%emt 0:01:22]} Kg7 {[%emt 0:00:36]} 37. d5 {[%emt 0:01:14]} exd5 {[%emt 0:01:57]} 38. Rf5 {[%emt 0:00:18]} f6 {[%emt 0:06:48]} 39. Bc5 {[%emt 0:00:36]} Rh1+ {[%emt 0:00:37]} 40. Kxh1 {[%emt 0:00:10]} Nxg3+ {[%emt 0:00:04]} 0-1